Workbook

Sheet мирный
A1: Школа | F1: Утвердил: | G1: должность
A2: Типовое примерное меню приготавливаемых блюд | G2: фамилия
A3: Возрастная категория | E3: 7-11 лет | G3: дата | H3: 7 | I3: 11 | J3: 2024
H4: день | I4: месяц | J4: год
A5: Неделя | B5: День недели | C5: Прием пищи | D5: Раздел меню | E5: Блюда | F5: Вес блюда, г | G5: Белки | H5: Жиры | I5: Углеводы | J5: Калорийность | K5: № рецептуры | L5: Цена
A6: 1 | B6: 1 | C6: Завтрак | D6: гарнир | E6: Каша молочная Дружба с маслом сливочным, яйцо вареное, 200/5/48/1 шт | F6: 253 | G6: 13 | H6: 13 | I6: 37 | J6: 315 | K6: ТТК №84, №337 | L6: =17.8+4.8+19.1 -> 41.70
D7: напиток | E7: Напиток витаминный | F7: 200 | G7: 0 | H7: 0 | I7: 19 | J7: 78 | K7: ТТК №505С | L7: 14.60
D8: хлеб | E8: Хлеб (порциями) | F8: 37 | G8: 2 | H8: 0 | I8: 17 | J8: 115 | K8: №1 сб.2004 г. | L8: 3.46
D9: сладкое | E9: Пряники (Северные или Зареченские), 1 шт | F9: 39 | G9: 2 | H9: 2 | I9: 11 | J9: 109 | L9: 7.00
D13: итого | F13: =SUM(F6:F12) -> 529 | G13: 16.76 | H13: 15.55 | I13: 84 | J13: 617 | L13: =SUM(L6:L12) -> 66.76
A14: =A6 -> 1 | B14: 1 | C14: Обед | D14: закуска
D15: 1 блюдо
D16: 2 блюдо
D17: гарнир
D18: напиток
D19: хлеб бел.
D20: хлеб черн.
D23: итого | F23: =SUM(F14:F22) -> 0 | G23: 0 | H23: 0 | I23: 0 | J23: 0 | L23: =SUM(L14:L22) -> 0
A24: =A6 -> 1 | B24: 1 | C24: Итого за день: | F24: =F13+F23 -> 529 | G24: 16.76 | H24: 15.55 | I24: 84 | J24: 617 | L24: =L13+L23 -> 66.76
A25: 1 | B25: 2 | C25: Завтрак | D25: закуска | E25: Свекла отварная | F25: 60 | G25: 1 | H25: 0 | I25: 5 | J25: 18 | K25: ТТК №601С | L25: 5.80
D26: 2 блюдо | E26: Плов из цыплят, 40/160 | F26: 200 | G26: 13 | H26: 15 | I26: 43 | J26: 305 | K26: №492 сб.2004 г. | L26: 51.40
D27: гор. напиток | E27: Чай полусладкий с курагой, 200/10/7 | F27: 217 | G27: 1 | H27: 0 | I27: 14 | J27: 54 | K27: ТТК №514С | L27: 6.00
D28: хлеб | E28: Хлеб (порциями) | F28: 38 | G28: 2 | H28: 0 | I28: 17 | J28: 118 | K28: №1 сб.2004 г. | L28: 3.56
D32: итого | F32: =SUM(F25:F31) -> 515 | G32: 16.16 | H32: 15.99 | I32: 78.24 | J32: 495 | L32: =SUM(L25:L31) -> 66.76
A33: =A25 -> 1 | B33: 2 | C33: Обед | D33: закуска
D34: 1 блюдо
D35: 2 блюдо
D36: гарнир
D37: напиток
D38: хлеб бел.
D39: хлеб черн.
D42: итого | F42: =SUM(F33:F41) -> 0 | G42: 0 | H42: 0 | I42: 0 | J42: 0 | L42: =SUM(L33:L41) -> 0
A43: =A25 -> 1 | B43: 2 | C43: Итого за день: | F43: =F32+F42 -> 515 | G43: 16.16 | H43: 15.99 | I43: 78.24 | J43: 495 | L43: =L32+L42 -> 66.76
A44: 1 | B44: 3 | C44: Завтрак | D44: 2 блюдо | E44: Биточки Дружба с соусом красным основным, 80/20 | F44: 100 | G44: 10 | H44: 11 | I44: 10 | J44: 180 | K44: ТТК №355, ТТК №362 | L44: =50+0.8 -> 50.80
D45: гарнир | E45: Макаронные изделия отварные | F45: 170 | G45: 6 | H45: 5 | I45: 36 | J45: 213 | K45: №516 сб. 2004 г. | L45: 10.20
D46: гор.напиток | E46: Чай с сахаром, 200/15 | F46: 215 | G46: 0 | H46: 0 | I46: 15 | J46: 57 | K46: №685 сб. 2004 г. | L46: 3.10
D47: булочное | E47: Хлеб (порциями) | F47: 29 | G47: 2 | H47: 0 | I47: 13 | J47: 90 | K47: №1 сб.2004 г. | L47: 2.66
D51: итого | F51: =SUM(F44:F50) -> 514 | G51: 17.41 | H51: 16.63 | I51: 74.55 | J51: 540 | L51: =SUM(L44:L50) -> 66.76
A52: =A44 -> 1 | B52: 3 | C52: Обед | D52: закуска
D53: 1 блюдо
D54: 2 блюдо
D55: гарнир
D56: напиток
D57: хлеб бел.
D58: хлеб черн.
D61: итого | F61: =SUM(F52:F60) -> 0 | G61: 0 | H61: 0 | I61: 0 | J61: 0 | L61: =SUM(L52:L60) -> 0
A62: =A44 -> 1 | B62: 3 | C62: Итого за день: | F62: =F51+F61 -> 514 | G62: 17.41 | H62: 16.63 | I62: 74.55 | J62: 540 | L62: =L51+L61 -> 66.76
A63: 1 | B63: 4 | C63: Завтрак | D63: 2 блюдо | E63: Котлеты Любительские с соусом красным основным, 80/20 | F63: 100 | G63: 12 | H63: 11 | I63: 12 | J63: 205 | K63: ТТК №286, ТТК №362 | L63: =47.8+0.4+0.4 -> 48.60
D64: гарнир | E64: Каша гречневая вязкая | F64: 150 | G64: 5 | H64: 6 | I64: 22 | J64: 158 | K64: №510 табл.4 сб.2004 г. | L64: 9.60
D65: гор.напиток | E65: Чай с сахаром, 200/15 | F65: 215 | G65: 0 | H65: 0 | I65: 15 | J65: 57 | K65: №685 сб. 2004 г. | L65: 3.10
D66: хлеб | E66: Хлеб (порциями) | F66: 31 | G66: 2 | H66: 0 | I66: 14 | J66: 96 | K66: №1 сб.2004 г. | L66: 2.86
D67: сладкое | E67: Печенье формовое, 1 шт | F67: 15 | G67: 1 | H67: 2 | I67: 9 | J67: 50 | L67: 2.60
D70: итого | F70: =SUM(F63:F69) -> 511 | G70: 19.49 | H70: 18.31 | I70: 71.77 | J70: 566 | L70: =SUM(L63:L69) -> 66.76
A71: =A63 -> 1 | B71: 4 | C71: Обед | D71: закуска
D72: 1 блюдо
D73: 2 блюдо
D74: гарнир
D75: напиток
D76: хлеб бел.
D77: хлеб черн.
D80: итого | F80: =SUM(F71:F79) -> 0 | G80: 0 | H80: 0 | I80: 0 | J80: 0 | L80: =SUM(L71:L79) -> 0
A81: =A63 -> 1 | B81: 4 | C81: Итого за день: | F81: =F70+F80 -> 511 | G81: 19.49 | H81: 18.31 | I81: 71.77 | J81: 566 | L81: =L70+L80 -> 66.76
A82: 1 | B82: 5 | C82: Завтрак | D82: 2 блюдо | E82: Рыба, тушенная в томате с овощами (филе минтая) | F82: 100 | G82: 10 | H82: 9 | I82: 14 | J82: 134 | K82: №374 сб.2004 г. | L82: 42.20
D83: гарнир | E83: Пюре картофельное | F83: 150 | G83: 3 | H83: 5 | I83: 19 | J83: 146 | K83: №520 сб.2004 г. | L83: 17.90
D84: гор.напиток | E84: Чай с сахаром, 200/15 | F84: 215 | G84: 0 | H84: 0 | I84: 15 | J84: 57 | K84: №685 сб. 2004 г. | L84: 3.10
D85: хлеб | E85: Хлеб (порциями) | F85: 38 | G85: 2 | H85: 0 | I85: 17 | J85: 118 | K85: №1 сб.2004 г. | L85: 3.56
D89: итого | F89: =SUM(F82:F88) -> 503 | G89: 15.87 | H89: 15.96 | I89: 66.96 | J89: 455 | L89: =SUM(L82:L88) -> 66.76
A90: =A82 -> 1 | B90: 5 | C90: Обед | D90: закуска
D91: 1 блюдо
D92: 2 блюдо
D93: гарнир
D94: напиток
D95: хлеб бел.
D96: хлеб черн.
D99: итого | F99: =SUM(F90:F98) -> 0 | G99: 0 | H99: 0 | I99: 0 | J99: 0 | L99: =SUM(L90:L98) -> 0
A100: =A82 -> 1 | B100: 5 | C100: Итого за день: | F100: =F89+F99 -> 503 | G100: 15.87 | H100: 15.96 | I100: 66.96 | J100: 455 | L100: =L89+L99 -> 66.76
A101: 1 | B101: 6 | C101: Завтрак | D101: гарнир | E101: Паста с сыром, 150/25 | F101: 175 | G101: 12 | H101: 14 | I101: 32 | J101: 264 | K101: ТТК №301С | L101: =9+8.5+8.5+4.3 -> 30.30
D102: гор.напиток | E102: Чай с сахаром и лимоном, 200/15/5 | F102: 220 | G102: 0 | H102: 0 | I102: 15 | J102: 58 | K102: №686 сб.2004 г. | L102: 4.90
D103: хлеб | E103: Хлеб (порциями) | F103: 17 | G103: 1 | H103: 0 | I103: 8 | J103: 63 | L103: 1.56
E104: Пюре фруктовое Яблоко с трубочкой, 1 шт | F104: 125 | G104: 0 | H104: 0 | I104: 11 | J104: 62 | L104: 30.00
D108: итого | F108: =SUM(F101:F107) -> 537 | G108: 14.96 | H108: 15.85 | I108: 66.74 | J108: 447 | L108: =SUM(L101:L107) -> 66.76
A109: =A101 -> 1 | B109: 6 | C109: Обед | D109: закуска
D110: 1 блюдо
D111: 2 блюдо
D112: гарнир
D113: напиток
D114: хлеб бел.
D115: хлеб черн.
D118: итого | F118: =SUM(F109:F117) -> 0 | G118: 0 | H118: 0 | I118: 0 | J118: 0 | L118: =SUM(L109:L117) -> 0
A119: =A101 -> 1 | B119: 6 | C119: Итого за день: | F119: =F108+F118 -> 537 | G119: 14.96 | H119: 15.85 | I119: 66.74 | J119: 447 | L119: =L108+L118 -> 66.76
A120: 2 | B120: 1 | C120: Завтрак | D120: гарнир | E120: Каша рисовая вязкая молочная с маслом сливочным, 200/10 | F120: 210 | G120: 11 | H120: 12 | I120: 34 | J120: 297 | K120: №510 табл.4 | L120: =20.2+4.8+4.8 -> 29.80
D121: гор.напиток | E121: Чай с сахаром и лимоном, 200/15/7 | F121: 222 | G121: 0 | H121: 0 | I121: 15 | J121: 59 | K121: №686 сб.2004 г. | L121: 5.70
D122: хлеб | E122: Хлеб (порциями) | F122: 35 | G122: 2 | H122: 0 | I122: 16 | J122: 108 | K122: №1 сб.2004 г. | L122: 3.26
D123: сладкое | E123: Пирожное песочное Лакомка, 1 шт | F123: 50 | G123: 2 | H123: 4 | I123: =32-15 -> 17 | J123: =227-82 -> 145 | L123: 28.00
D127: итого | F127: =SUM(F120:F126) -> 517 | G127: 15.38 | H127: 15.985 | I127: 82.02 | J127: 609 | L127: =SUM(L120:L126) -> 66.76
A128: =A120 -> 2 | B128: 1 | C128: Обед | D128: закуска
D129: 1 блюдо
D130: 2 блюдо
D131: гарнир
D132: напиток
D133: хлеб бел.
D134: хлеб черн.
D137: итого | F137: =SUM(F128:F136) -> 0 | G137: 0 | H137: 0 | I137: 0 | J137: 0 | L137: =SUM(L128:L136) -> 0
A138: =A120 -> 2 | B138: 1 | C138: Итого за день: | F138: =F127+F137 -> 517 | G138: 15.38 | H138: 15.985 | I138: 82.02 | J138: 609 | L138: =L127+L137 -> 66.76
A139: 2 | B139: 2 | C139: Завтрак | D139: 2 блюдо | E139: Котлеты Любительские с соусом красным основным, 80/20 | F139: 100 | G139: 12 | H139: 11 | I139: 12 | J139: 205 | K139: ТТК №286, ТТК №362 | L139: =47.8+0.8 -> 48.60
D140: гарнир | E140: Макаронные изделия отварные | F140: 170 | G140: 6 | H140: 5 | I140: 36 | J140: 213 | K140: №516 сб. 2004 г. | L140: 10.20
D141: гор. напиток | E141: Чай полусладкий с черносливом, 200/10/7 | F141: 217 | G141: 0 | H141: 0 | I141: 14 | J141: 55 | K141: ТТК №515С | L141: 6.00
D142: хлеб | E142: Хлеб (порциями) | F142: 21 | G142: 1 | H142: 0 | I142: 9 | J142: 65 | K142: №1 сб.2004 г. | L142: 1.96
D146: итого | F146: =SUM(F139:F145) -> 508 | G146: 19.04 | H146: 16.41 | I146: 71.41 | J146: 538 | L146: =SUM(L139:L145) -> 66.76
A147: =A139 -> 2 | B147: 2 | C147: Обед | D147: закуска
D148: 1 блюдо
D149: 2 блюдо
D150: гарнир
D151: напиток
D152: хлеб бел.
D153: хлеб черн.
D156: итого | F156: =SUM(F147:F155) -> 0 | G156: 0 | H156: 0 | I156: 0 | J156: 0 | L156: =SUM(L147:L155) -> 0
A157: =A139 -> 2 | B157: 2 | C157: Итого за день: | F157: =F146+F156 -> 508 | G157: 19.04 | H157: 16.41 | I157: 71.41 | J157: 538 | L157: =L146+L156 -> 66.76
A158: 2 | B158: 3 | C158: Завтрак | D158: 2 блюдо | E158: Картофель тушеный с филе птицы рубленым с доп.гарниром овощи свежие (огурцы) порционно, 200/15 | F158: 215 | G158: 15 | H158: 12 | I158: 21 | J158: 236 | K158: ТТК №100С, табл.№24 сб. 1996 г. | L158: 56.00
D159: гор.напиток | E159: Чай с сахаром, 200/15 | F159: 215 | G159: 0 | H159: 0 | I159: 15 | J159: 57 | K159: №685 сб. 2004 г. | L159: 3.10
D160: хлеб | E160: Хлеб (порциями) | F160: 40 | G160: 2 | H160: 0 | I160: 18 | J160: 124 | K160: №1 сб.2004 г. | L160: 2.46
D161: сладкое | E161: Печенье формовое, 2 шт | F161: 30 | G161: 2 | H161: 3 | I161: =8.99*2 -> 18 | J161: 100 | L161: 5.20
D165: итого | F165: =SUM(F158:F164) -> 500 | G165: 19.32 | H165: 15.85 | I165: 71.99 | J165: 517 | L165: =SUM(L158:L164) -> 66.76
A166: =A158 -> 2 | B166: 3 | C166: Обед | D166: закуска
D167: 1 блюдо
D168: 2 блюдо
D169: гарнир
D170: напиток
D171: хлеб бел.
D172: хлеб черн.
D175: итого | F175: =SUM(F166:F174) -> 0 | G175: 0 | H175: 0 | I175: 0 | J175: 0 | L175: =SUM(L166:L174) -> 0
A176: =A158 -> 2 | B176: 3 | C176: Итого за день: | F176: =F165+F175 -> 500 | G176: 19.32 | H176: 15.85 | I176: 71.99 | J176: 517 | L176: =L165+L175 -> 66.76
A177: 2 | B177: 4 | C177: Завтрак | D177: закуска | E177: Свекла отварная | F177: 60 | G177: 1 | H177: 0 | I177: 5 | J177: 18 | K177: ТТК №601С | L177: 5.80
D178: 2 блюдо | E178: Плов с мясом говядины рубленным, 30/150 | F178: 180 | G178: 13 | H178: 13 | I178: 40 | J178: 326 | K178: ТТК №107С | L178: 49.00
D179: гор.напиток | E179: Чай с сахаром, 200/15 | F179: 215 | G179: 0 | H179: 0 | I179: 15 | J179: 57 | K179: №685 сб. 2004 г. | L179: 3.10
D180: хлеб | E180: Хлеб (порциями) | F180: 31 | G180: 2 | H180: 0 | I180: 14 | J180: 96 | K180: №1 сб.2004 г. | L180: 2.86
D181: сладкое | E181: Вафли неглазированные Белек, 1 шт | F181: 20 | G181: 1 | H181: 5 | I181: 9 | J181: 99 | L181: 6.00
D184: итого | F184: =SUM(F177:F183) -> 506 | G184: 16.47 | H184: 17.63 | I184: 82.21 | J184: 596 | L184: =SUM(L177:L183) -> 66.76
A185: =A177 -> 2 | B185: 4 | C185: Обед | D185: закуска
D186: 1 блюдо
D187: 2 блюдо
D188: гарнир
D189: напиток
D190: хлеб бел.
D191: хлеб черн.
D194: итого | F194: =SUM(F185:F193) -> 0 | G194: 0 | H194: 0 | I194: 0 | J194: 0 | L194: =SUM(L185:L193) -> 0
A195: =A177 -> 2 | B195: 4 | C195: Итого за день: | F195: =F184+F194 -> 506 | G195: 16.47 | H195: 17.63 | I195: 82.21 | J195: 596 | L195: =L184+L194 -> 66.76
A196: 2 | B196: 5 | C196: Завтрак | D196: 2 блюдо | E196: Гуляш из филе птицы, 50/50 | F196: 100 | G196: 13 | H196: 16 | I196: 12 | J196: 211 | K196: №437 сб.2004 г. | L196: 48.60
D197: гарнир | E197: Макаронные изделия отварные | F197: 170 | G197: 6 | H197: 5 | I197: 36 | J197: 213 | K197: №516 сб. 2004 г. | L197: 10.20
D198: гор.напиток | E198: Чай с сахаром и лимоном, 200/15/7 | F198: 222 | G198: 0 | H198: 0 | I198: 15 | J198: 59 | K198: №686 сб.2004 г. | L198: 5.70
D199: хлеб | E199: Хлеб (порциями) | F199: 25 | G199: 1 | H199: 0 | I199: 11 | J199: 77 | K199: №1 сб.2004 г. | L199: 2.26
D203: итого | F203: =SUM(F196:F202) -> 517 | G203: 19.16 | H203: 20.31 | I203: 74.72 | J203: 560 | L203: =SUM(L196:L202) -> 66.76
A204: =A196 -> 2 | B204: 5 | C204: Обед | D204: закуска
D205: 1 блюдо
D206: 2 блюдо
D207: гарнир
D208: напиток
D209: хлеб бел.
D210: хлеб черн.
D213: итого | F213: =SUM(F204:F212) -> 0 | G213: 0 | H213: 0 | I213: 0 | J213: 0 | L213: =SUM(L204:L212) -> 0
A214: =A196 -> 2 | B214: 5 | C214: Итого за день: | F214: =F203+F213 -> 517 | G214: 19.16 | H214: 20.31 | I214: 74.72 | J214: 560 | L214: =L203+L213 -> 66.76
A215: 2 | B215: 6 | C215: Завтрак | D215: 2 блюдо | E215: Сосиски для детского питания отварные с соусом красным основным, 80/20 | F215: 100 | G215: 8 | H215: 13 | I215: 3 | J215: 189 | K215: №413 сб. 2004 г., ТТК №362 | L215: =47.3+0.8 -> 48.10
D216: гарнир | E216: Каша гречневая вязкая | F216: 180 | G216: 5 | H216: 7 | I216: 27 | J216: 189 | K216: №510 табл.4 сб.2004 г. | L216: 11.50
D217: горячий напиток | E217: Кофейный напиток | F217: 200 | G217: 0 | H217: 0 | I217: 22 | J217: 77 | K217: ТТК №503С | L217: 4.50
D218: хлеб | E218: Хлеб (порциями) | F218: 29 | G218: 2 | H218: 0 | I218: 13 | J218: 90 | K218: №1 сб.2004 г. | L218: 2.66
D222: итого | F222: =SUM(F215:F221) -> 509 | G222: 15.06 | H222: 20.12 | I222: 66.77 | J222: 545 | L222: =SUM(L215:L221) -> 66.76
A223: =A215 -> 2 | B223: 6 | C223: Обед | D223: закуска
D224: 1 блюдо
D225: 2 блюдо
D226: гарнир
D227: напиток
D228: хлеб бел.
D229: хлеб черн.
D232: итого | F232: =SUM(F223:F231) -> 0 | G232: 0 | H232: 0 | I232: 0 | J232: 0 | L232: =SUM(L223:L231) -> 0
A233: =A215 -> 2 | B233: 6 | C233: Итого за день: | F233: =F222+F232 -> 509 | G233: 15.06 | H233: 20.12 | I233: 66.77 | J233: 545 | L233: =L222+L232 -> 66.76
C234: Среднее значение за период: | F234: =(F138+F157+F176+F195+F214+F24+F43+F62+F81+F100)/(IF(F138=0,0,1)+IF(F157=0,0,1)+IF(F176=0,0,1)+IF(F195=0,0,1)+IF(F214=0,0,1)+IF(F24=0,0,1)+IF(F43=0,0,1)+IF(F62=0,0,1)+IF(F81=0,0,1)+IF(F100=0,0,1)) -> 512 | G234: =(G138+G157+G176+G195+G214+G24+G43+G62+G81+G100)/(IF(G138=0,0,1)+IF(G157=0,0,1)+IF(G176=0,0,1)+IF(G195=0,0,1)+IF(G214=0,0,1)+IF(G24=0,0,1)+IF(G43=0,0,1)+IF(G62=0,0,1)+IF(G81=0,0,1)+IF(G100=0,0,1)) -> 17.506 | H234: =(H138+H157+H176+H195+H214+H24+H43+H62+H81+H100)/(IF(H138=0,0,1)+IF(H157=0,0,1)+IF(H176=0,0,1)+IF(H195=0,0,1)+IF(H214=0,0,1)+IF(H24=0,0,1)+IF(H43=0,0,1)+IF(H62=0,0,1)+IF(H81=0,0,1)+IF(H100=0,0,1)) -> 16.8625 | I234: =(I138+I157+I176+I195+I214+I24+I43+I62+I81+I100)/(IF(I138=0,0,1)+IF(I157=0,0,1)+IF(I176=0,0,1)+IF(I195=0,0,1)+IF(I214=0,0,1)+IF(I24=0,0,1)+IF(I43=0,0,1)+IF(I62=0,0,1)+IF(I81=0,0,1)+IF(I100=0,0,1)) -> 75.787 | J234: =(J138+J157+J176+J195+J214+J24+J43+J62+J81+J100)/(IF(J138=0,0,1)+IF(J157=0,0,1)+IF(J176=0,0,1)+IF(J195=0,0,1)+IF(J214=0,0,1)+IF(J24=0,0,1)+IF(J43=0,0,1)+IF(J62=0,0,1)+IF(J81=0,0,1)+IF(J100=0,0,1)) -> 549.3 | L234: =(L138+L157+L176+L195+L214+L24+L43+L62+L81+L100)/(IF(L138=0,0,1)+IF(L157=0,0,1)+IF(L176=0,0,1)+IF(L195=0,0,1)+IF(L214=0,0,1)+IF(L24=0,0,1)+IF(L43=0,0,1)+IF(L62=0,0,1)+IF(L81=0,0,1)+IF(L100=0,0,1)) -> 66.76
